Cogmind - Beta 13 @@@ ROGUE MODE // 2024.03.30 @ 23:32:09 Player: Snips Result: Destroyed by S-27 Virus with Autogun Performance ------------- Evolutions (3) 1500 Regions Visited (6) 1200 Robots Destroyed (38) 190 Value Destroyed (989) 989 Prototype IDs (2) 40 Alien Tech Used (0) 0 Bonus (500) 500 TOTAL SCORE: 4419 Bonus ------- Entered DSFs 500 Cogmind --------- Core Integrity 0/700 Matter 90/300 Energy 100/100 System Corruption 21% Temperature Cool (0) Movement Core (450) Ox8 Location -7/DSF Parts ------- > --- POWER (1) -------- (None) > --- PROPULSION (4) --- (None) > --- UTILITY (6) ------ Large Storage Unit Hacking Suite > --- WEAPON (2) ------- Autogun Minigun > --- INVENTORY (15) --- Great Maul Peak State ------------ > --- POWER ------------ Angular Momentum Engine > --- PROPULSION ------- Medium Treads Medium Treads Medium Treads > --- UTILITY ---------- Field Recycling Unit > --- WEAPON ----------- Minigun Great Maul > --- INVENTORY -------- Large Storage Unit Hacking Suite High-powered Tractor Beam [Rating: 25] Favorites ----------- Power Ion Engine Engine Ion Engine Propulsion Light Treads Treads Light Treads Leg Aluminum Leg Wheel Compact Wheel Utility Large Storage Unit Device Field Recycling Unit Storage Large Storage Unit Hackware Hacking Suite Protection Propulsion Shielding Weapon Assault Rifle Energy Gun EM Shotgun Ballistic Gun Assault Rifle Ballistic Cannon Light Cannon Launcher Mini Grenade Launcher Special Weapon Welding Torch Impact Weapon Great Maul Build | -11 -10 -9 -9 -8 -7 -7 ------- Run | Yrd Mat Mat Min Mat Fac DSF Slots Evolved 6 | . . 2 . 2 2 . Power . | . . . . . . . Propulsion 2 | . . 1 . 1 . . Utility 4 | . . 1 . 1 2 . Weapon . | . . . . . . . Parts Attached 59 | 5 9 30 . . 1 14 Power 8 | . 1 6 . . . 1 Engine 8 | . 1 6 . . . 1 Core . | . . . . . . . Reactor . | . . . . . . . Propulsion 15 | 2 . 8 . . . 5 Treads 5 | 2 . . . . . 3 Leg 9 | . . 7 . . . 2 Wheel 1 | . . 1 . . . . Hover . | . . . . . . . Flight . | . . . . . . . Utility 11 | 1 . 6 . . . 4 Device 3 | . . 1 . . . 2 Storage 5 | 1 . 3 . . . 1 Processor . | . . . . . . . Hackware 1 | . . . . . . 1 Protection 2 | . . 2 . . . . Artifact . | . . . . . . . Weapon 25 | 2 8 10 . . 1 4 Energy Gun 1 | . . 1 . . . . Energy Cannon . | . . . . . . . Ballistic Gun 17 | 2 5 6 . . . 4 Ballistic Cannon 2 | . 2 . . . . . Launcher 3 | . . 3 . . . . Special Weapon 1 | . 1 . . . . . Impact Weapon 1 | . . . . . 1 . Slashing Weapon . | . . . . . . . Piercing Weapon . | . . . . . . . Special Melee Weapon . | . . . . . . . Unidentified Prototypes . | . . . . . . . Corrupted Parts 4 | . . . . . . 4 System Corruption 21 | . . . . . . 21 Parts Lost 26 | . 1 19 . . . 6 Power 6 | . . 5 . . . 1 Propulsion 10 | . . 7 . . . 3 Utility 3 | . . 2 . . . 1 Weapon 7 | . 1 5 . . . 1 Highest Loss Streak 10 | . 1 10 . . . 6 To Critical Strikes . | . . . . . . . Average Slot Usage (%) 59 | . 82 77 . . 7 24 Engine 6 | . 11 9 . . . . Treads 11 | . 28 10 . . . 6 Leg 7 | . . 13 . . . . Device 3 | . . 5 . . . 3 Storage 8 | . 14 11 . . . 1 Protection 3 | . . 6 . . . . Ballistic Gun 11 | . 13 16 . . . 3 Ballistic Cannon 3 | . 11 2 . . . . Launcher 1 | . . 1 . . . . Impact Weapon 1 | . . . . . 7 6 Naked Turns 174 | . . 13 29 130 2 . Heaviest Build 40 | 8 15 40 . . 4 33 Greatest Support 84 | 40 40 40 3 3 3 84 Greatest Overweight (x) 13 | . . 13 . . 1 2 Average Overweight (x) . | . . . . . . . Largest Inventory Capacity 15 | 8 8 15 5 5 5 15 Average Capacity 10 | 7 8 14 5 5 5 6 Most Carried 15 | 7 8 15 5 5 5 5 Average Carried 9 | 3 7 12 5 4 4 3 Final Capacity 15 | 8 8 5 5 5 5 15 Final Carried 8 | 7 8 5 5 5 5 1 Class Distribution -------------------- 100% | Mutant Dominant Class ---------------- Mutant | -10/Materials Mutant | -9/Materials Mutant | -9/Mines Mutant | -8/Materials Mutant | -7/Factory Mutant | -7/DSF Resources | -11 -10 -9 -9 -8 -7 -7 ----------- Run | Yrd Mat Mat Min Mat Fac DSF Matter Collected 970 | 142 135 404 . . . 289 Remotely 96 | . . . . . . 96 Salvage Created 960 | . 151 530 . . . 279 Parts 77 | . 9 57 . . . 11 Haulers Intercepted . | . . . . . . . Recyclers Shooed . | . . . . . . . Parts Field Recycled 18 | . . 18 . . . . Retrieved Matter 104 | . . 104 . . . . Parts Self-Destructed . | . . . . . . . Prevented . | . . . . . . . Kills | -11 -10 -9 -9 -8 -7 -7 ------- Run | Yrd Mat Mat Min Mat Fac DSF Combat Hostiles Destroyed 29 | . 6 17 . . . 6 Melee 2 | . . . . . . 2 Guns 13 | . 2 8 . . . 3 Cannons 4 | . 4 . . . . . AOE 9 | . . 9 . . . . Classes Destroyed 8 | . 3 4 . . . 1 Worker 3 | . 1 2 . . . . Builder 4 | . . 4 . . . . Mechanic 1 | . . 1 . . . . Operator 1 | . . 1 . . . . Swarmer 12 | . 3 7 . . . 2 Grunt 10 | . 3 7 . . . . Sentry 3 | . . 3 . . . . Specialist 4 | . . . . . . 4 Best Kill Streak 7 | . 7 7 . . . 2 Combat Bots Only 6 | . 6 4 . . . 2 Max Kills in Single Turn 4 | . 1 4 . . . 1 Gunslinging . | . . . . . . . Exploded 2 | . . 2 . . . . Melee 1 | . . . . . . 1 Uniques/NPCs Destroyed . | . . . . . . . Combat | -11 -10 -9 -9 -8 -7 -7 -------- Run | Yrd Mat Mat Min Mat Fac DSF Hostile Shots Fired 452 | . 41 231 4 12 . 164 Missed 137 | . 12 70 2 6 . 47 Damage Taken 4216 | . 262 2108 23 69 . 1754 Core 1180 | . 33 352 23 69 . 703 Absorbed by Shields . | . . . . . . . Redirected to Shielding 115 | . . 115 . . . . Core Remaining (%) 69 | 100 86 . 6 87 . . Volleys Fired 124 | . 13 97 . . . 14 Largest 2 | . 2 2 . . . 2 Hottest 65 | . 55 65 . . . 48 Shots Fired 193 | . 23 151 . . . 19 Gun 157 | . 8 130 . . . 19 Cannon 12 | . 11 1 . . . . Launcher 20 | . . 20 . . . . Special 4 | . 4 . . . . . Kinetic 166 | . 19 128 . . . 19 Thermal 4 | . 4 . . . . . Explosive 20 | . . 20 . . . . Electromagnetic 3 | . . 3 . . . . Robot Hit Streak 12 | . 12 8 . . . 6 Robot Miss Streak 6 | . 1 6 . . . 2 Penetration Max . | . . . . . . . Secondary Targets 3 | . 1 1 . . . 1 Max Gunslinging Chain 1 | . 1 1 . . . 1 Shots Hit Robots 122 | . 15 83 . . . 24 Core Hits 54 | . 7 40 . . . 7 Critical Kills . | . . . . . . . Critical Parts Destroyed 2 | . . 1 . . . 1 Critical Strikes 2 | . . 1 . . . 1 Destroy 1 | . . 1 . . . . Smash 1 | . . . . . . 1 Melee Attacks 16 | . . . . . . 16 Impact 16 | . . . . . . 16 Slashing . | . . . . . . . Piercing . | . . . . . . . Sneak Attacks . | . . . . . . . Combat Hostiles . | . . . . . . . Follow-up Attacks . | . . . . . . . Damage Inflicted 2649 | . 224 1694 . 4 . 727 Guns 1118 | . 33 898 . . . 187 Cannons 187 | . 187 . . . . . Explosions 784 | . . 784 . . . . Melee 540 | . . . . . . 540 Ramming 16 | . . 12 . 4 . . Kinetic 1298 | . 220 891 . . . 187 Thermal 4 | . 4 . . . . . Explosive 784 | . . 784 . . . . Electromagnetic 7 | . . 7 . . . . Impact 540 | . . . . . . 540 Slashing . | . . . . . . . Piercing . | . . . . . . . Highest Corruption 21 | . . . . . . 21 Average Corruption 8 | . . . . . . 8 Corruption Purged . | . . . . . . . Corruption Blocked . | . . . . . . . Effects 6 | . . . . . . 6 Message Errors 1 | . . . . . . 1 Matter Fused 3 | . . . . . . 3 Parts Rejected 1 | . . . . . . 1 Weapon Failures 1 | . . . . . . 1 Overload Shots . | . . . . . . . Overflow Damage 195 | . . 110 . . . 85 Projectiles . | . . . . . . . Explosions 110 | . . 110 . . . . Melee 85 | . . . . . . 85 Knockbacks 5 | . 2 . . . . 3 Impact 3 | . . . . . . 3 Kinetic 2 | . 2 . . . . . Secondary . | . . . . . . . Self-Inflicted Damage 223 | . . 221 . 2 . . Shots 6 | . . 6 . . . . Rammed 3 | . . 1 . 2 . . Targets Rammed 4 | . . 2 . 2 . . Kicked 1 | . . 1 . . . . Crushed . | . . . . . . . Highest Temperature 26 | . 6 26 . . . . Average Temperature 4 | . 3 5 . . . . Received Heat Transfer 894 | . 72 792 12 18 . . Siege Activations . | . . . . . . . Robots Corrupted . | . . . . . . . Combat Hostiles . | . . . . . . . Parts Fried 1 | . . . . . . 1 Impact Corruptions 3 | . . . . . . 3 Robots Melted . | . . . . . . . Combat Hostiles . | . . . . . . . Parts Melted . | . . . . . . . Heat Transferred 25 | . 25 . . . . . Parts Sabotaged . | . . . . . . . Parts Stolen . | . . . . . . . Parts Stripped . | . . . . . . . Power Chain Reactions . | . . . . . . . Alert | -11 -10 -9 -9 -8 -7 -7 ------- Run | Yrd Mat Mat Min Mat Fac DSF Peak Influence 381 | . 150 381 126 132 59 149 Initial 126 | . . 63 126 48 59 44 Average 157 | . 42 244 126 85 59 92 Maximum Alert Level 1 | . . 1 . . . . Low Security (%) 59 | 100 100 24 100 100 100 100 Level 1 40 | . . 75 . . . . Level 2 . | . . . . . . . Level 3 . | . . . . . . . Level 4 . | . . . . . . . Level 5 . | . . . . . . . High Security . | . . . . . . . Max Security . | . . . . . . . Squads Dispatched 7 | . 1 3 . 1 . 2 Investigation 2 | . 1 1 . . . . Extermination . | . . . . . . . Reinforcement 5 | . . 2 . 1 . 2 Assault . | . . . . . . . Garrison . | . . . . . . . Intercept . | . . . . . . . Searches Triggered . | . . . . . . . Construction Impeded 1 | . . 1 . . . . Haulers Reinforced . | . . . . . . . Active Scanning Responses . | . . . . . . . Cargo Convoy Interrupts . | . . . . . . . Stealth | -11 -10 -9 -9 -8 -7 -7 --------- Run | Yrd Mat Mat Min Mat Fac DSF Distress Signals 1 | . . 1 . . . . Communications Jammed . | . . . . . . . Distress Signals . | . . . . . . . Times Spotted 57 | . 8 32 2 7 . 8 Peak Tracking Total 7 | . 5 7 2 4 . 5 Tactical Retreats 6 | . . 4 . 1 . 1 Traps | -11 -10 -9 -9 -8 -7 -7 ------- Run | Yrd Mat Mat Min Mat Fac DSF Traps Triggered 1 | . . . . . 1 . Indirectly . | . . . . . . . Trap Hack Attempts . | . . . . . . . Triggered . | . . . . . . . Disarmed . | . . . . . . . Reprogrammed . | . . . . . . . Reused . | . . . . . . . Traps Extracted . | . . . . . . . Installed . | . . . . . . . Triggered . | . . . . . . . Machines | -11 -10 -9 -9 -8 -7 -7 ---------- Run | Yrd Mat Mat Min Mat Fac DSF Machines Disabled 6 | . . 6 . . . . Max in Single Turn 1 | . . 1 . . . . Machines Repaired . | . . . . . . . Machines Dismantled . | . . . . . . . Machines Sabotaged . | . . . . . . . Overloaded Fab Kills . | . . . . . . . Hacking | -11 -10 -9 -9 -8 -7 -7 --------- Run | Yrd Mat Mat Min Mat Fac DSF Machines Accessed 6 | . 1 3 . 1 1 . Terminals 6 | . 1 3 . 1 1 . Fabricators . | . . . . . . . Repair Stations . | . . . . . . . Recycling Units . | . . . . . . . Scanalyzers . | . . . . . . . Garrison Access . | . . . . . . . Total Hacks 16 | . 3 8 . 3 2 . Successful 10 | . 1 6 . 2 1 . Failed 6 | . 2 2 . 1 1 . Catastrophic 2 | . 1 . . 1 . . Database Lockouts . | . . . . . . . Manual . | . . . . . . . Terminals 16 | . 3 8 . 3 2 . Fabricators . | . . . . . . . Repair Stations . | . . . . . . . Recycling Units . | . . . . . . . Scanalyzers . | . . . . . . . Garrison Access . | . . . . . . . Terminal Hacks 10 | . 1 6 . 2 1 . Record 2 | . . 1 . 1 . . Prototype ID Bank 1 | . . 1 . . . . Open DSF 1 | . . . . . 1 . Dispatch Records 2 | . . 2 . . . . Maintenance Status 1 | . . 1 . . . . Patrol Status 1 | . . 1 . . . . Registered Components 1 | . 1 . . . . . Zone Layout 1 | . . . . 1 . . Fabricator Hacks . | . . . . . . . Repair Station Hacks . | . . . . . . . Recycling Unit Hacks . | . . . . . . . Scanalyzer . | . . . . . . . Garrison Access Hacks . | . . . . . . . Unauthorized Hacks . | . . . . . . . Terminals . | . . . . . . . Fabricators . | . . . . . . . Repair Stations . | . . . . . . . Recycling Units . | . . . . . . . Scanalyzers . | . . . . . . . Garrison Access . | . . . . . . . Data Cores Recovered . | . . . . . . . Used . | . . . . . . . Hacking Detections 4 | . 1 1 . 1 1 . Full Trace Events 3 | . 1 1 . 1 . . Feedback Events . | . . . . . . . Feedback Blocked . | . . . . . . . Robot Schematics Acquired . | . . . . . . . Robots Built . | . . . . . . . Authchips . | . . . . . . . Time . | . . . . . . . Total Robot Build Rating . | . . . . . . . Part Schematics Acquired . | . . . . . . . Parts Built . | . . . . . . . Authchips . | . . . . . . . Time . | . . . . . . . Total Part Build Rating . | . . . . . . . Parts Repaired . | . . . . . . . Time . | . . . . . . . Parts Recycled . | . . . . . . . Recycled Matter . | . . . . . . . Retrieved Matter . | . . . . . . . Retrieved Components . | . . . . . . . Parts Scanalyzed . | . . . . . . . Part Schematics Acquired . | . . . . . . . Parts Damaged . | . . . . . . . Bothacking | -11 -10 -9 -9 -8 -7 -7 ------------ Run | Yrd Mat Mat Min Mat Fac DSF Used RIF Installer . | . . . . . . . Robots Hacked . | . . . . . . . Non-combat . | . . . . . . . Combat . | . . . . . . . Robot Hacks Applied . | . . . . . . . Relay Couplers Released . | . . . . . . . Fabnet Peak Effective % . | . . . . . . . Robots Rewired . | . . . . . . . Allies Hacked . | . . . . . . . Hacks Repelled . | . . . . . . . Allies | -11 -10 -9 -9 -8 -7 -7 -------- Run | Yrd Mat Mat Min Mat Fac DSF Total Allies . | . . . . . . . Largest Group . | . . . . . . . Highest-Rated Group . | . . . . . . . Highest-Rated Ally . | . . . . . . . Total Orders . | . . . . . . . Ally Attacks . | . . . . . . . Total Damage . | . . . . . . . Kills . | . . . . . . . Allies Corrupted . | . . . . . . . Allies Melted . | . . . . . . . Intel | -11 -10 -9 -9 -8 -7 -7 ------- Run | Yrd Mat Mat Min Mat Fac DSF Robot Analysis Total . | . . . . . . . Derelict Logs Recovered . | . . . . . . . Drone Launches . | . . . . . . . Drone Recoveries . | . . . . . . . Exploration | -11 -10 -9 -9 -8 -7 -7 ------------- Run | Yrd Mat Mat Min Mat Fac DSF Turns Passed 1912 | 116 278 1012 29 130 111 236 Spaces Moved 1141 | 64 130 461 56 246 96 88 Core 498 | 1 . 26 56 246 96 73 Treads 415 | 63 130 209 . . . 13 Legs 228 | . . 226 . . . 2 Wheels . | . . . . . . . Hover . | . . . . . . . Flight . | . . . . . . . Fastest Speed 50 | 50 160 50 50 50 50 100 Average Speed 114 | 158 160 142 50 50 98 110 Slowest Speed 700 | 160 160 700 50 50 100 160 Overloaded Moves . | . . . . . . . Propulsion Burnouts . | . . . . . . . Robots Hopped . | . . . . . . . Cave-ins Triggered . | . . . . . . . Exploration Rate (%) 21 | 5 17 29 21 32 4 45 Regions Visited 6 Branch Regions 1 Pre-discovered Areas . | . . . . . . . Known Exits Taken 1 | . . . . . 1 . Unknown Exits Taken 5 | 1 1 1 1 1 . . Scrap Searched . | . . . . . . . Spaces Dug . | . . . . . . . Terrain Destroyed 164 | . . 164 . . . . Melee . | . . . . . . . Projectile . | . . . . . . . AOE 164 | . . 164 . . . . Terrain Rammed . | . . . . . . . Walls Destroyed . | . . . . . . . Machines Disabled . | . . . . . . . Actions | -11 -10 -9 -9 -8 -7 -7 --------- Run | Yrd Mat Mat Min Mat Fac DSF Total 1516 | 76 174 669 56 253 112 176 Wait 117 | 1 18 55 1 . . 42 Move 1135 | 63 129 460 55 245 95 88 Hop . | . . . . . . . Pick Up 29 | 7 2 16 . 3 1 . Fast Attach 20 | 5 1 7 . . . 7 Attach 21 | . 2 13 . . 1 5 Detach 3 | . 1 2 . . . . Swap 18 | . 6 10 . . . 2 Drop 12 | . . 7 . 3 . 2 Fire 124 | . 13 97 . . . 14 Melee 16 | . . . . . . 16 Ram 3 | . . 1 . 2 . . Kick 1 | . . 1 . . . . Crush . | . . . . . . . Escape Stasis 15 | . . . . . 15 . Rewire 2 | . 2 . . . . . Trap . | . . . . . . . Miscellaneous . | . . . . . . . Route ------- -11/Scrapyard -10/Materials -9/Materials -9/Mines -8/Materials -7/Factory -7/DSF History --------- Turn | Location | Event 8 | -11/Scrapyard | Discovered new exit (range 16) 117 | -11/Scrapyard | Entered Materials 289 | -10/Materials | Discovered new exit (range 9) 312 | -10/Materials | Build established: Mutant 395 | -10/Materials | Entered another Materials area 395 | -9/Materials | Evolved 2 slots: Propulsion x1, Utility x1 909 | -9/Materials | Lost 3 parts (1p1n1u) 1234 | -9/Materials | Core integrity fell below 50% 1390 | -9/Materials | Core integrity fell below 20% 1394 | -9/Materials | Released all parts (3) 1398 | -9/Materials | Discovered new exit (range 10) 1407 | -9/Materials | Entered Mines 1416 | -9/Mines | Lost 10 parts (2p5n3w) 1430 | -9/Mines | Discovered new exit (range 12) 1436 | -9/Mines | Entered Materials 1436 | -8/Materials | Evolved 2 slots: Propulsion x1, Utility x1 1558 | -8/Materials | Discovered new exit (range 16) 1566 | -8/Materials | Entered Factory 1566 | -7/Factory | Evolved 2 slots: Utility x2 1677 | -7/Factory | Identified exit to DSF 1677 | -7/Factory | Entered DSF 1700 | -7/DSF | Additional patrols routed to DSF 1774 | -7/DSF | Core integrity fell below 50% 1870 | -7/DSF | Core integrity fell below 20% 1897 | -7/DSF | System corruption reached 10% 1913 | -7/DSF | Destroyed by S-27 Virus with Autogun Last Messages --------------- a colon in the parts list, as a reminder). Acquired 96 matter. System corrupted: Matter fused (-9). Acquired Autogun. Med. Treads destroyed. X-57 Shotgunner suffers critical hit (Smash). Destroyed Hpw. Shotgun. X-57 Shotgunner system corrupted by crushing effect. X-57 Shotgunner knocked back. Hpw. Tractor Beam destroyed. Med. Treads destroyed. System corrupted: Field Recycling Unit rejected. X-57 Shotgunner IFF system glitched. Integrated Corrupted Minigun (+13). X-57 Shotgunner IFF system glitched. System corrupted: Minigun jammed. X-57 Shotgunner destroyed. Med. Treads destroyed. S-27 Virus destroyed. Switching to secondary target: S-27 Virus. Map ----- +----------------------------------------------------+ | | | | | | | | | | | | | | | | | | | | | | | | | | | ?????????????????????????????????? | | ?????????????????????????????????? | | ?????????????????????????????????? | | ?????????????????????????????????? | | ?????????""#?????????????????????? | | ?????????#"#?????????????????????? | | ??????####"##???????#########????? | | ??????#"""""######### #????? | | ??????#"""""##==# # #????? | | ???#"##"" #????? | | ???#""""" #????? | | ????###""%= ##==# ### ###????? | | ??????###@ ###==# #?# #??????? | | ???????##! ##########? ?????? | | ???????#*!=%=#???????? #????? | | ???????# === #??????? #????? | | ???????##s=###???????## ###????? | | ???????# ==#????????! !??????? | | ???????# ==#????????! !!?????? | | ???????# ==#????????! !!?????? | | ??????### ###????????# ###????? | | ??????# #??? #?????? #??????? | | ??????# ## #!!!#?? ??????? | | ??????#//^^ ??????? | | ??????#//^^ H ??????? | | ??????#//^ ??????? | | ??????#|| ##]]]#===## ???????? | | ??????#|| #?]]]#?==#????????????? | | ??????######??###???#????????????? | | ?????????????????????????????????? | | ?????????????????????????????????? | | ?????????????????????????????????? | | ?????????????????????????????????? | | ?????????????????????????????????? | | ?????????????????????????????????? | | ?????????????????????????????????? | | ?????????????????????????????????? | +----------------------------------------------------+ Best States ------------- Heat Dissipation 34 Energy Generation 18 Energy Capacity 300 Matter Stores 192 Matter Capacity 300 Sight Range 16 Terrain Scan Density 10 Propulsion Shielding 33 Evasion (%) 55 Recoil Reduction 3 Offensive Hacking 10 Item Schematics ----------------- None Robot Schematics ------------------ None Fabricated ------------ Nothing Alien Tech Used ----------------- None Achievements -------------- None Challenges ------------ None Game ------ Seed FocalFieldInitializer Manual? 0 Play Time 00:32:33 Cumulative 2.1 hours Start 2024.03.30 @ 22:58:25 End 2024.03.30 @ 23:32:09 Sessions 1 Manual Loads 0 Difficulty Rogue Special Mode None Game No. 12 Rogue 12 Adventurer 0 Explorer 0 Win Type - Total 0 Types 0/0/0/0/0/0/0/0/0 Lore% 1 Gallery% 9 Achievement% 18 Wizard Run 0 Options --------- Layout 1 ASCII 0 Keyboard 0 Movement Numpad Keybinds 0 Fullscreen 1 Font 48/Terminus++ Map View 55x35 Zoom Use 0% Tactical HUD 0 Map Filters NONE Filters NONE Steam 1 RUN: 08184e19-2b3c-4b6c-8578-5325fdf12710